bitfinex/quotes_ETHUSD_20250529
["timestamp","ask_amount","ask_price","bid_price","bid_amount"]
[1748497231229,0.7782,2727.6,2726.9,8.0]
[1748497231398,0.7782,2727.6,2727.2,3.66668027]
[1748497231925,0.7782,2727.6,2727.1,3.66688318]
[1748497232231,0.7782,2727.6,2726.9,3.66713412]
[1748497232389,0.7782,2727.6,2727.1,3.66687277]
[1748497233929,0.7782,2727.6,2727.2,3.66672747]
[1748497234120,0.7782,2727.6,2727.1,3.66683562]
[1748497234320,0.7782,2727.6,2726.9,1.064]
[1748497234517,1.24562,2727.6,2726.9,1.064]
[1748497234736,1.24562,2727.6,2727.2,3.66675966]
[1748497235407,0.7782,2727.6,2727.2,3.66675966]
[1748497236528,0.7782,2727.6,2727.1,3.66682782]
[1748497236909,0.7782,2727.6,2727.2,3.66673361]
[1748497238730,0.7782,2727.6,2727.1,3.66682355]
[1748497239040,0.7782,2727.6,2727.2,3.66674913]
[1748497239332,0.7782,2727.6,2727.1,3.66684634]
[1748497239510,0.7782,2727.6,2727.0,3.66701954]
[1748497239511,0.7782,2727.6,2727.0,3.66697297]
[1748497239705,0.7782,2727.6,2727.0,3.66690929]
[1748497240157,0.7782,2727.6,2727.1,3.66688594]
[1748497241034,0.7782,2727.6,2727.2,3.66676444]
[1748497241443,0.7782,2727.6,2727.3,3.66658355]
[1748497243410,0.7782,2727.6,2727.4,3.66648281]
[1748497243609,0.7782,2727.6,2727.3,3.66656306]
[1748497244127,0.7782,2727.6,2727.0,3.66698774]
[1748497244458,0.7782,2727.6,2727.2,3.66666156]
[1748497246913,0.7782,2727.6,2727.3,3.6665535]
[1748497247314,0.7782,2727.6,2727.2,3.66671047]
[1748497250545,0.7782,2727.6,2727.3,3.66657563]
[1748497250882,0.7782,2727.6,2727.0,1.06]
[1748497251037,0.7782,2727.6,2727.3,3.66656286]
[1748497251375,0.7782,2727.6,2727.0,4.72702833]
[1748497251535,0.7782,2727.6,2727.3,3.66653749]
[1748497252583,0.7782,2727.6,2727.5,3.66636113]
[1748497252900,0.7782,2727.6,2727.1,0.47270283]
[1748497252901,0.7888,2727.9,2727.7,3.66602977]
[1748497253072,0.19093677,2728.5,2727.2,3.66674722]
[1748497253073,0.7738,2728.2,2727.8,3.66587983]
[1748497254366,0.7738,2728.2,2727.7,3.66604295]
[1748497255982,0.7738,2728.2,2727.5,0.763]
[1748497256289,0.7738,2728.2,2727.7,3.6660887]
[1748497256756,0.7738,2728.2,2727.6,3.66620835]
[1748497256961,0.7738,2728.2,2727.8,3.66593371]
[1748497257161,0.7738,2728.2,2728.0,3.66561236]
[1748497257331,0.7738,2728.2,2727.9,3.66575443]
[1748497257857,0.7738,2728.2,2727.9,3.66581494]
[1748497258172,0.7738,2728.2,2727.6,4.10912748]
[1748497258173,0.7738,2728.2,2728.0,3.66557078]
[1748497258568,0.7956,2728.5,2728.0,3.66557078]
[1748497258758,4.6846,2728.5,2728.0,3.66557078]
[1748497258950,5.20806,2728.5,2727.9,3.66575969]
[1748497261097,1.31906,2728.5,2727.9,3.66575969]
[1748497261275,4.6846,2728.5,2728.0,3.66562525]
[1748497262284,4.6846,2728.5,2727.9,3.66576075]
[1748497263165,4.6846,2728.5,2727.6,8.44292083]
[1748497263578,4.6846,2728.5,2727.9,3.6657492]
[1748497264182,4.6846,2728.5,2727.8,3.66589037]
[1748497264384,0.50267337,2728.4,2727.8,3.66589037]
[1748497264592,0.7912,2728.3,2727.9,3.66581365]
[1748497265161,0.7912,2728.3,2728.1,3.66552139]
[1748497265357,0.7912,2728.3,2727.6,13.16812638]
[1748497265696,4.7149,2728.6,2728.2,3.66542042]
[1748497265875,5.22060133,2728.6,2728.2,3.66542042]
[1748497266397,1.33360133,2728.6,2728.2,3.66542042]
[1748497266568,0.8279,2728.6,2728.2,3.66539101]
[1748497266895,0.8279,2728.6,2728.2,3.66541408]
[1748497267897,0.8279,2728.6,2728.2,3.66536135]
[1748497268502,0.8279,2728.6,2728.1,3.66555058]
[1748497268698,0.8279,2728.6,2728.0,3.66566471]
[1748497268996,0.8279,2728.6,2727.8,1.059]
[1748497268997,0.7685,2728.5,2727.8,1.059]
[1748497269295,0.7685,2728.5,2728.1,3.66549096]
[1748497270001,0.7685,2728.5,2728.1,3.66548803]
[1748497270219,0.7685,2728.5,2728.1,3.66549082]
[1748497270398,0.7685,2728.5,2728.2,3.66541433]
[1748497270576,0.7685,2728.5,2728.1,3.66549356]
[1748497270775,0.7685,2728.5,2728.0,3.665668]
[1748497272101,0.7685,2728.5,2727.8,5.67506052]
[1748497272102,1.23395,2728.5,2727.8,3.665878]
[1748497272487,1.23395,2728.5,2727.6,1.50192083]
[1748497272784,1.23395,2728.5,2727.8,3.66584546]
[1748497274511,1.23395,2728.5,2727.9,3.66580343]
[1748497275115,0.7948,2728.3,2727.6,1.059]
[1748497275413,0.7948,2728.3,2727.8,3.66588065]
[1748497275709,0.7948,2728.3,2727.9,3.6657477]
[1748497276084,0.7948,2728.3,2727.8,3.66589965]
[1748497277303,0.7948,2728.3,2727.9,3.66574898]
[1748497277499,0.7948,2728.3,2728.0,3.66566926]
[1748497277701,0.7948,2728.3,2727.9,3.6657557]
[1748497283921,0.7948,2728.3,2727.8,3.66588746]
[1748497284421,1.26268,2728.3,2727.8,3.66588746]
[1748497285583,1.26268,2728.3,2727.9,3.66580183]
[1748497288093,1.26268,2728.3,2727.8,3.66589146]
[1748497290298,0.7948,2728.3,2727.8,3.66589146]
[1748497291145,0.7948,2728.3,2727.9,3.66579734]
[1748497291294,0.7948,2728.3,2727.9,3.66576066]
[1748497291603,0.7948,2728.3,2727.7,4.72099543]
[1748497291604,0.7948,2728.3,2727.8,3.66591229]
[1748497292217,0.7948,2728.3,2727.7,4.72099543]
[1748497292409,0.7948,2728.3,2727.9,3.66575227]
[1748497295515,0.7948,2728.3,2727.8,3.66589437]
[1748497296335,0.7948,2728.3,2727.9,3.66579274]
[1748497296539,0.7948,2728.3,2727.8,3.66592811]
[1748497296836,0.7948,2728.3,2727.9,3.6658216]
[1748497297929,0.7948,2728.3,2727.9,3.66581323]
[1748497300664,1.26238,2728.3,2727.8,1.055]
[1748497301947,1.26238,2728.3,2727.7,4.72102044]
[1748497302341,1.26238,2728.3,2727.8,3.66594626]
[1748497304108,1.26238,2728.3,2727.7,1.055]
[1748497304314,1.26238,2728.3,2727.7,4.72103328]
[1748497304850,1.26238,2728.3,2727.8,3.66592422]
[1748497308648,1.26238,2728.3,2727.7,3.66609231]
[1748497308849,1.26238,2728.3,2727.8,3.6658755]
[1748497309120,1.26238,2728.3,2727.9,3.6658186]
[1748497309851,1.26238,2728.3,2727.8,3.66590993]
[1748497310657,1.26238,2728.3,2727.7,1.05]
[1748497310819,0.7948,2728.3,2727.7,1.05]
[1748497311019,0.7948,2728.3,2727.8,3.66583669]
[1748497311637,0.7948,2728.3,2727.7,4.71596653]
[1748497312957,0.7948,2728.3,2727.8,3.66584791]
[1748497313742,0.7948,2728.3,2727.9,3.66581807]
[1748497314439,0.7948,2728.3,2727.8,3.66591785]
[1748497317966,0.7948,2728.3,2727.7,4.71596653]
[1748497318133,0.7948,2728.3,2727.8,3.66589053]
[1748497319250,0.7948,2728.3,2727.9,3.66579645]
[1748497319966,0.7948,2728.3,2727.8,3.66591072]
[1748497320946,0.7948,2728.3,2727.7,3.66596966]
[1748497321138,0.7948,2728.3,2727.8,3.66593415]
[1748497321346,1.26168,2728.3,2727.8,3.66593415]
[1748497323835,0.7948,2728.3,2727.8,3.66593415]
[1748497324692,0.7948,2728.3,2727.9,3.66574957]
[1748497328100,0.7948,2728.3,2727.8,3.66586264]
[1748497329088,0.7948,2728.3,2727.9,3.66575965]
[1748497330201,0.7948,2728.3,2727.8,3.66593867]
[1748497330502,0.7948,2728.3,2727.9,3.66571769]
[1748497330878,0.7855,2728.8,2728.0,0.73316564]
[1748497331081,0.05,2728.9,2728.7,3.66474878]
[1748497331280,0.05,2728.9,2728.3,0.762]
[1748497331281,0.05,2728.9,2728.8,3.66461448]
[1748497337103,0.05,2728.9,2728.8,11.66461448]
[1748497337315,0.05,2728.9,2728.8,13.27767966]
[1748497337521,0.05,2728.9,2728.8,15.8679315]
[1748497339768,0.34318859,2729.3,2729.2,3.66407738]
[1748497339966,0.34318859,2729.3,2729.2,14.22332922]
[1748497341007,0.34317462,2729.5,2729.4,12.49350889]
[1748497341237,0.34317462,2729.5,2729.4,15.04668431]
[1748497341741,0.34317462,2729.5,2729.4,13.17198431]
[1748497342026,0.34317462,2729.5,2729.4,14.21698431]
[1748497345222,0.34317462,2729.5,2729.4,15.04788431]
[1748497345481,0.34317462,2729.5,2729.4,16.83683615]
[1748497345951,0.7842,2730.4,2729.8,14.20522387]
[1748497348090,0.05,2730.9,2729.8,14.20522387]
[1748497348091,0.7517,2730.6,2729.8,14.20522387]
[1748497351405,0.7618,2730.8,2730.5,3.6623329]
[1748497351571,0.7618,2730.8,2730.7,3.66206467]
[1748497352705,0.7618,2730.8,2730.3,0.7799]
[1748497352908,0.7618,2730.8,2730.7,3.66206467]
[1748497354391,0.7618,2730.8,2730.6,3.66216268]
[1748497354792,0.7618,2730.8,2730.7,3.66206467]
[1748497355307,0.05,2730.9,2730.7,3.66206467]
[1748497355527,0.05,2730.9,2730.7,3.66199107]
[1748497356435,0.05,2730.9,2730.4,0.7863]
[1748497356632,0.05,2730.9,2730.5,9.044]
[1748497356838,0.05,2730.9,2730.5,12.70632355]
[1748497357020,0.05,2730.9,2730.5,1.044]
[1748497357218,0.05,2730.9,2730.5,4.70632759]
[1748497357601,0.05,2730.9,2730.5,3.66232759]
[1748497357801,0.7689,2730.8,2730.4,12.70642069]
[1748497358044,0.7689,2730.8,2730.5,3.66225206]
[1748497358249,0.7689,2730.8,2730.4,8.0]
[1748497358413,0.7689,2730.8,2730.5,3.66233171]
[1748497358612,0.05,2730.9,2730.4,3.66243674]
[1748497358821,0.05,2730.9,2730.6,3.66212618]
[1748497360138,0.05,2730.9,2730.7,3.66203974]
[1748497360361,0.05,2730.9,2730.8,3.66193056]
[1748497360632,0.05,2730.9,2730.8,12.43993056]
[1748497361401,0.8344,2730.9,2729.9,0.7832]
[1748497361607,0.8344,2730.9,2730.5,3.66232448]
[1748497362041,0.8344,2730.9,2730.3,3.66252566]
[1748497362438,0.8344,2730.9,2730.3,8.0]
[1748497362805,0.8344,2730.9,2730.3,3.66257841]
[1748497363311,0.8344,2730.9,2730.4,3.66245982]
[1748497363723,0.8344,2730.9,2730.3,3.66253302]
[1748497364229,0.8344,2730.9,2730.3,3.66258087]
[1748497364415,0.8344,2730.9,2730.4,3.66237171]
[1748497365053,0.8344,2730.9,2730.0,9.044]
[1748497365215,0.8344,2730.9,2730.3,3.66253004]
[1748497365647,0.8344,2730.9,2730.3,11.66253004]
[1748497366676,0.8344,2730.9,2730.3,8.0]
[1748497367158,0.8344,2730.9,2730.2,3.66263901]
[1748497367565,0.8344,2730.9,2730.1,3.66286949]
[1748497367733,0.8344,2730.9,2730.3,3.66252719]
[1748497368489,0.8344,2730.9,2729.7,3.66338528]
[1748497368490,0.8117,2730.7,2729.7,3.66338528]
[1748497368811,0.8117,2730.7,2729.9,3.66306536]
[1748497369369,0.8117,2730.7,2730.0,3.66299517]
[1748497369526,0.8117,2730.7,2729.9,3.66311265]
[1748497370033,0.8117,2730.7,2729.9,3.66305219]
[1748497370969,0.55,2730.4,2729.1,0.7831]
[1748497371167,0.7502,2730.1,2729.3,3.66387099]
[1748497371461,0.7502,2730.1,2729.1,3.66418336]
[1748497371462,0.7502,2730.0,2729.1,3.66418336]
[1748497371966,0.7502,2730.0,2729.2,8.0]
[1748497372263,0.7502,2730.0,2729.3,3.66390288]
[1748497373445,0.7502,2730.0,2729.0,8.0]
[1748497373446,0.55,2729.9,2729.0,8.0]
[1748497373662,0.55,2729.9,2728.4,8.7027]
[1748497373663,0.7791,2729.6,2728.9,3.66440746]
[1748497373953,0.7791,2729.6,2729.0,3.66432848]
[1748497374873,0.7791,2729.6,2728.9,3.66442651]
[1748497376386,0.7791,2729.6,2729.2,3.66400714]
[1748497377447,0.7791,2729.6,2729.3,3.6639154]
[1748497378889,0.7791,2729.6,2729.2,3.6640212]
[1748497381189,0.7791,2729.6,2729.1,3.66417452]
[1748497381579,0.7791,2729.6,2728.7,14.20628029]
[1748497381580,0.7791,2729.6,2729.0,3.66428587]
[1748497382862,0.7791,2729.6,2729.0,3.66434591]
[1748497383074,0.7791,2729.6,2728.9,3.66447193]
[1748497383475,0.7791,2729.6,2728.8,3.66455825]
[1748497383683,0.7791,2729.6,2728.9,3.6644752]
[1748497383974,0.7791,2729.6,2728.8,3.66455209]
[1748497384703,0.7791,2729.6,2728.7,4.70474116]
[1748497384903,0.7791,2729.6,2728.9,3.66439877]
[1748497385666,0.55,2729.5,2728.5,8.0]
[1748497385865,0.55,2729.5,2728.5,4.70498888]
[1748497385866,0.8268,2729.4,2728.5,4.70498888]
[1748497386064,0.8268,2729.4,2728.6,3.66481805]
[1748497386313,0.8268,2729.4,2728.5,4.70498888]
[1748497386314,0.8268,2729.4,2728.7,3.66473863]
[1748497387231,0.8268,2729.4,2728.5,9.04]
[1748497387508,0.8268,2729.4,2728.8,3.66450794]
[1748497387813,0.8268,2729.4,2728.7,3.66473319]
[1748497388039,0.8268,2729.4,2728.8,3.66461286]
[1748497388566,3.855,2729.3,2728.9,3.66446253]
[1748497388770,3.855,2729.3,2728.7,3.66472294]
[1748497388771,3.855,2729.3,2728.8,3.66456324]
[1748497389098,3.855,2729.3,2728.9,3.66445967]
[1748497389419,0.8268,2729.4,2728.9,3.66445967]
[1748497389420,0.8268,2729.4,2729.3,3.66394313]
[1748497389622,0.8268,2729.4,2729.2,3.66401714]
[1748497389975,0.8268,2729.4,2729.3,3.66394313]
[1748497392710,4.6599,2729.6,2729.2,3.66407239]
[1748497392913,4.6599,2729.6,2728.9,0.73291826]
[1748497392914,4.6589,2729.6,2729.4,3.66378543]
[1748497393119,4.6589,2729.6,2729.1,3.66409877]
[1748497393321,4.6589,2729.6,2729.3,3.66387818]
[1748497393527,4.6589,2729.6,2729.2,3.66403835]
[1748497393835,0.8049,2729.6,2729.2,3.66401117]
[1748497394128,0.8049,2729.6,2729.3,3.66392708]
[1748497397152,0.8049,2729.6,2729.2,3.66402557]
[1748497397737,0.8049,2729.6,2729.2,3.66407738]
[1748497397952,0.8049,2729.6,2729.3,3.66393881]
[1748497398660,0.8049,2729.6,2729.2,3.66400717]
[1748497400141,4.6579,2729.6,2729.3,3.66393009]
[1748497400770,4.6579,2729.6,2729.2,3.66401553]
[1748497401952,5.12369,2729.6,2729.1,3.66414016]
[1748497402145,5.12369,2729.6,2729.2,3.66406306]
[1748497403165,0.7982,2729.5,2728.8,1.037]
[1748497403366,0.7982,2729.5,2728.9,3.66448019]
[1748497403565,0.7982,2729.5,2729.0,3.66434591]
[1748497403926,0.7982,2729.5,2729.1,3.66411314]
[1748497404565,0.7982,2729.5,2729.0,3.66434591]
[1748497404566,3.852,2729.4,2729.2,3.66404739]
[1748497405267,3.852,2729.4,2729.1,3.66414853]
[1748497405438,3.852,2729.4,2729.2,3.66405528]
[1748497405674,0.7982,2729.5,2729.3,3.66394313]
[1748497405884,3.852,2729.4,2729.3,3.66394313]
[1748497406609,4.6502,2729.5,2729.4,3.66380889]
[1748497406966,0.34309456,2729.9,2729.7,3.66331156]
[1748497406967,0.7982,2729.9,2729.7,3.66331156]
[1748497407210,0.7982,2729.9,2729.8,3.66327203]
[1748497407412,0.34242465,2730.0,2729.9,3.66313784]
[1748497410593,0.34242465,2730.0,2729.9,11.66313784]
[1748497410794,0.34242465,2730.0,2729.9,13.27278883]
[1748497411782,0.34242465,2730.0,2729.9,5.58369967]
[1748497411986,0.34242465,2730.0,2729.9,3.66313784]
[1748497413066,0.34242465,2730.0,2729.9,4.51276486]
[1748497413269,0.34242465,2730.0,2729.9,4.47613784]
[1748497414003,0.34242465,2730.0,2729.9,12.47613784]
[1748497417203,0.34048232,2730.1,2730.0,11.66300366]
[1748497417484,0.34048232,2730.1,2730.0,16.94949685]
[1748497418286,1.02330958,2730.2,2730.0,16.94949685]
[1748497418287,1.02330958,2730.2,2730.1,12.46146949]
[1748497418823,1.02330958,2730.2,2730.1,16.30946949]
[1748497419026,0.34262078,2730.3,2730.2,12.46133533]
[1748497419324,0.34262078,2730.3,2730.2,14.45477224]
[1748497421831,0.34262078,2730.3,2730.2,13.65617224]
[1748497426046,0.34262078,2730.3,2730.2,5.65617224]
[1748497426610,0.34262078,2730.3,2730.2,3.66273533]
[1748497429148,0.34262078,2730.3,2730.2,11.66273533]
[1748497441861,4.06259525,2730.8,2730.5,3.66225363]
[1748497442028,4.06259525,2730.8,2730.3,3.66251427]
[1748497442029,4.06259525,2730.8,2730.6,3.66219358]
[1748497442826,4.06259525,2730.8,2730.5,3.66227435]
[1748497443022,4.47385478,2730.8,2730.2,3.66267085]
[1748497443282,4.47385478,2730.8,2730.3,3.66248501]
[1748497444567,4.47385478,2730.8,2730.1,3.66282571]
[1748497444568,4.47385478,2730.8,2730.1,3.66279875]
[1748497444770,4.47385478,2730.8,2730.0,1.036]
[1748497444771,0.8067,2730.7,2730.0,1.036]
[1748497444976,0.52805548,2730.6,2730.3,3.66259189]
[1748497445780,0.52805548,2730.6,2730.4,3.66243569]
[1748497445933,0.52805548,2730.6,2730.3,3.66253461]
[1748497446134,0.52805548,2730.6,2730.0,1.036]
[1748497446377,0.52805548,2730.6,2730.3,3.66250497]
[1748497446574,0.52805548,2730.6,2730.0,1.036]
[1748497446761,0.52805548,2730.6,2730.0,3.66298616]
[1748497446762,0.8259,2730.5,2730.0,3.66298616]
[1748497447865,0.8259,2730.5,2730.1,3.66286008]
[1748497450880,0.8259,2730.5,2730.3,3.66246902]
[1748497450881,0.82415303,2730.5,2730.3,3.66246902]
[1748497451176,3.841,2730.4,2730.1,3.66285912]
[1748497451379,3.841,2730.4,2730.0,3.66298381]
[1748497451571,3.841,2730.4,2730.1,3.66286949]
[1748497452080,3.841,2730.4,2729.8,8.0]
[1748497452282,3.841,2730.4,2730.1,3.66286644]
[1748497453078,0.82415303,2730.5,2730.1,3.66286644]
[1748497453268,3.841,2730.4,2730.1,3.66286644]
[1748497453775,0.82415303,2730.5,2730.3,3.66253115]
[1748497453977,4.66515303,2730.5,2730.3,3.66253115]
[1748497454153,4.66515303,2730.5,2730.2,3.66267145]
[1748497456484,3.841,2730.5,2730.2,3.66270167]
[1748497459382,0.8121,2730.6,2730.2,3.66270167]
[1748497459593,3.84,2730.5,2730.2,3.66270167]
[1748497460804,0.8121,2730.6,2730.3,3.66257291]
[1748497460971,3.84,2730.5,2730.3,3.66260117]
[1748497461169,3.84,2730.5,2730.4,3.66246703]
[1748497461497,3.84,2730.5,2729.8,11.66315932]
[1748497461498,0.8121,2730.6,2729.8,3.66319068]
[1748497461677,0.8121,2730.6,2729.9,0.44747907]
[1748497461876,4.6511,2730.6,2730.3,3.66259571]
[1748497463394,4.6511,2730.6,2730.4,3.66241605]
[1748497463595,3.839,2730.6,2730.4,3.66236465]
[1748497463903,0.99809525,2730.8,2730.5,3.66228924]
[1748497464102,3.839,2730.7,2730.5,3.66228924]
[1748497464776,0.99809525,2730.8,2730.5,3.66228924]
[1748497464981,3.839,2730.7,2730.5,3.66228924]
[1748497465176,3.839,2730.7,2730.0,0.8116]
[1748497465379,0.99809525,2730.8,2730.0,0.8116]
[1748497465703,3.839,2730.7,2730.5,3.66233192]
[1748497467076,3.839,2730.7,2730.6,3.66219878]
[1748497467811,4.83609525,2730.8,2730.5,3.66225798]
[1748497468888,4.83609525,2730.8,2730.3,3.66258297]
[1748497469110,4.83609525,2730.8,2730.3,3.66252189]
[1748497469299,4.83609525,2730.8,2730.1,3.6628324]
[1748497469300,0.7783,2730.7,2730.2,11.66266594]
[1748497469804,0.7783,2730.7,2730.3,3.66259028]
[1748497470313,0.7783,2730.7,2730.1,11.66285026]
[1748497470679,0.7783,2730.7,2729.8,1.029]
[1748497470881,0.7783,2730.7,2730.1,3.66285476]
[1748497471116,0.48358953,2730.6,2730.1,3.66285476]
[1748497471983,0.48358953,2730.6,2730.2,3.66273217]
[1748497472995,0.48358953,2730.6,2730.1,3.66279769]
[1748497473614,0.48358953,2730.6,2730.2,3.66272781]
[1748497476038,3.837,2730.6,2730.3,3.6625871]
[1748497476212,3.837,2730.6,2730.2,3.6627202]
[1748497478239,3.837,2730.6,2730.1,3.66280605]
[1748497478425,3.837,2730.6,2730.2,3.66272993]
[1748497479946,0.7783,2730.7,2730.3,3.66248456]
[1748497480241,4.6143,2730.7,2730.3,3.66248456]
[1748497481044,0.7783,2730.7,2730.3,3.66248456]
[1748497481243,0.7783,2730.7,2730.4,3.66244254]
[1748497481543,0.7783,2730.7,2730.3,3.66255041]
[1748497482118,0.7783,2730.7,2730.0,0.8226]
[1748497482119,0.7783,2730.7,2730.0,3.66297346]
[1748497482440,0.7783,2730.7,2730.2,3.66267645]
[1748497482844,0.7783,2730.7,2730.3,3.66258375]
[1748497483046,0.7783,2730.7,2730.2,3.66269482]
[1748497490054,0.7783,2730.7,2730.1,3.66283043]
[1748497492342,0.7783,2730.7,2730.2,3.6627042]
[1748497492557,1.26668952,2730.7,2730.2,3.6627042]
[1748497492762,1.26668952,2730.7,2730.1,3.66280362]
[1748497493332,1.26668952,2730.7,2730.2,3.66273394]
[1748497494965,5.09968952,2730.7,2730.3,3.66258408]
[1748497495527,5.09968952,2730.7,2730.4,3.66237663]
[1748497495738,0.7783,2730.7,2730.4,3.66237663]
[1748497495947,0.7783,2730.7,2730.3,3.66253263]
[1748497497161,0.7783,2730.7,2730.3,3.66260117]
[1748497497360,0.7783,2730.7,2730.4,3.6623879]
[1748497499068,4.6103,2730.7,2730.1,3.66281783]
[1748497499247,4.6103,2730.7,2730.0,0.791]
[1748497499447,4.6103,2730.7,2730.3,3.66253413]
[1748497499767,0.48298953,2730.6,2730.3,3.66253413]
[1748497499966,4.6103,2730.7,2730.3,3.66253413]
[1748497500185,4.6103,2730.7,2730.1,3.66279591]
[1748497500680,4.6103,2730.7,2730.2,3.66270641]
[1748497500937,4.6103,2730.7,2730.1,3.66281341]
[1748497501276,4.6103,2730.7,2730.0,3.66296057]
[1748497501476,0.7869,2730.5,2730.0,3.66296057]
[1748497503498,0.7869,2730.5,2729.7,1.026]
[1748497503654,0.7869,2730.5,2730.1,3.66275279]
[1748497508005,0.7869,2730.5,2730.0,3.66298334]
[1748497508168,0.7869,2730.5,2729.9,3.66307238]
[1748497508505,1.24859,2730.5,2730.0,3.66296641]
[1748497510366,1.24859,2730.5,2730.1,3.66285544]
[1748497510576,0.7909,2730.4,2730.0,3.66300298]
[1748497510776,0.7909,2730.4,2729.4,0.8203]
[1748497510777,0.55,2730.3,2729.4,0.8203]
[1748497511002,0.55,2730.3,2729.1,3.6641786]
[1748497511003,0.55,2729.9,2728.9,0.8203]
[1748497511303,0.55,2729.9,2729.2,3.66398525]
[1748497511507,0.55,2729.9,2729.0,3.66431076]
[1748497511689,0.55,2729.9,2729.2,3.66397042]
[1748497512001,0.55,2729.9,2729.1,3.66414253]
[1748497512212,0.438,2729.8,2729.1,3.66414253]
[1748497513922,0.438,2729.8,2729.0,3.66426728]
[1748497514273,0.3543,2729.7,2729.0,3.66426728]
[1748497514500,0.3543,2729.7,2728.7,0.8242]
[1748497515076,0.3543,2729.7,2729.0,3.66427545]
[1748497515318,0.3543,2729.7,2729.2,3.66405988]
[1748497516515,0.55,2729.6,2728.9,3.66438541]
[1748497516815,0.3543,2729.5,2728.5,5.47468026]
[1748497517021,0.3543,2729.5,2729.0,3.66428175]
[1748497517420,0.3543,2729.5,2728.9,3.66447419]
[1748497517917,0.77263,2729.5,2728.8,3.66454619]
[1748497518125,0.3543,2729.4,2728.9,3.66447316]
[1748497520617,0.3543,2729.4,2728.7,8.0]
[1748497520809,0.3543,2729.4,2728.9,3.66434772]
[1748497520978,0.3543,2729.4,2728.9,3.66435079]
[1748497521181,0.3543,2729.4,2728.5,4.44422633]
[1748497521415,0.3543,2729.4,2729.1,3.6642001]
[1748497521593,0.3543,2729.4,2729.0,3.66427504]
[1748497523986,0.3543,2729.4,2728.9,3.66444619]
[1748497524235,0.3543,2729.4,2728.9,3.66435241]
[1748497525845,0.3543,2729.4,2728.5,0.77925765]
[1748497526002,0.3543,2729.4,2728.9,3.66441087]
[1748497528328,0.3543,2729.4,2728.9,3.66448019]
[1748497528510,4.1823,2729.4,2728.9,3.66448019]
[1748497530031,4.1823,2729.4,2729.0,3.66433635]
[1748497530833,4.1813,2729.4,2729.0,3.66433635]
[1748497531038,4.59943,2729.4,2729.0,3.66433635]
[1748497533813,4.59943,2729.4,2728.9,3.66441697]
[1748497536005,0.3587,2729.3,2728.9,3.66441697]
[1748497539355,0.3587,2729.3,2728.7,3.66466795]
[1748497539544,0.3587,2729.3,2728.9,3.66440697]
[1748497540317,0.3587,2729.3,2728.8,3.66455498]
[1748497540551,0.3587,2729.3,2728.9,3.66445069]
[1748497540755,0.3587,2729.3,2728.6,0.44443855]
[1748497540959,0.3587,2729.3,2728.8,3.66455155]
[1748497543965,0.3587,2729.3,2728.9,3.66447928]
[1748497544522,4.1837,2729.3,2728.9,3.66447928]
[1748497547578,4.1837,2729.3,2728.8,3.66454625]
[1748497548270,4.1837,2729.3,2728.7,3.66473329]
[1748497548475,4.1837,2729.3,2728.9,3.66447463]
[1748497548670,4.1837,2729.3,2728.8,3.66454301]
[1748497548986,4.1837,2729.3,2728.7,3.66472577]
[1748497549275,4.1837,2729.3,2728.8,3.66461448]
[1748497550445,4.1837,2729.3,2728.7,4.10913863]
[1748497550446,4.1837,2729.3,2728.9,3.66447903]
[1748497550646,4.1837,2729.3,2728.8,3.66455624]
[1748497552862,0.3587,2729.3,2728.9,3.66446336]
[1748497553258,4.1817,2729.3,2728.9,3.66446336]
[1748497553983,4.1817,2729.3,2728.7,0.44439834]
[1748497554186,4.1817,2729.3,2728.8,3.6646095]
[1748497559820,0.3587,2729.3,2728.8,3.6646095]
[1748497559977,4.1807,2729.3,2728.8,4.39754311]
[1748497560172,4.1807,2729.3,2728.8,3.6646095]
[1748497561513,0.3587,2729.3,2728.9,3.66446814]
[1748497561723,4.1807,2729.3,2728.7,3.66472661]
[1748497562267,4.1807,2729.3,2728.5,0.44272538]
[1748497562472,4.1807,2729.3,2728.8,3.66454304]
[1748497562672,4.1807,2729.3,2728.6,3.66488309]
[1748497562977,4.1807,2729.3,2728.8,3.66452572]
[1748497566511,4.1807,2729.3,2728.8,3.66461283]
[1748497566816,4.37153628,2729.3,2728.8,3.66461283]
[1748497567016,4.80868991,2729.3,2728.8,3.66461283]
[1748497567321,4.61785363,2729.3,2728.8,3.66461283]
[1748497567615,0.55,2729.2,2728.7,3.66466915]
[1748497568113,0.6952,2729.1,2728.6,3.66479692]
[1748497568286,0.6952,2729.1,2728.7,3.66468837]
[1748497569114,1.26471923,2729.1,2728.7,3.66468837]
[1748497569321,1.26471923,2729.1,2728.7,3.66473464]
[1748497569979,1.26471923,2729.1,2728.6,3.66486683]
[1748497570588,1.26471923,2729.1,2728.5,3.66494988]
[1748497570817,1.26471923,2729.1,2728.4,3.6651333]
[1748497571002,1.26471923,2729.1,2728.6,3.66488115]
[1748497572036,1.26471923,2729.1,2728.4,3.66511069]
[1748497572037,0.20055669,2729.0,2728.4,3.66511746]
[1748497572335,0.20055669,2729.0,2728.4,3.66515173]
[1748497572546,0.20055669,2729.0,2728.4,3.66508669]
[1748497572831,0.20055669,2729.0,2728.5,3.66495271]
[1748497573927,0.20055669,2729.0,2728.5,3.66498852]
[1748497575123,0.20055669,2729.0,2728.4,3.66514349]
[1748497575341,0.20055669,2729.0,2728.6,3.66487487]
[1748497576441,0.6952,2729.4,2728.5,8.8131]
[1748497576655,4.16195102,2729.7,2729.4,3.66372326]
[1748497576933,3.819,2729.7,2729.1,3.66421164]
[1748497577094,0.6952,2729.9,2729.5,3.66361838]
[1748497577288,3.819,2729.8,2729.5,3.66361838]
[1748497577832,3.819,2729.8,2729.4,3.66374506]
[1748497578188,3.819,2729.8,2729.3,4.48300914]
[1748497579018,0.6952,2729.9,2729.3,4.48303045]
[1748497579192,3.818,2729.8,2729.5,3.66367228]
[1748497579997,3.818,2729.8,2729.4,3.66374284]
[1748497580623,0.6952,2729.9,2729.5,3.66365813]
[1748497580934,4.15867195,2730.0,2729.7,3.66333412]
[1748497581098,4.15867195,2730.0,2729.6,3.66341869]
[1748497581294,0.34167195,2730.0,2729.6,3.66341869]
[1748497581495,0.34167195,2730.0,2729.9,3.66313784]
[1748497585036,0.34167195,2730.0,2729.9,4.49133784]